fUST/lending_fUST_20250707
["ID","MTS","AMOUNT","RATE_DAILY","PERIOD"]
[370036503,1751855359803,-24900.0,0.00018136,2]
[370036504,1751855359822,-420.0,0.00018567,2]
[370036505,1751855359841,-2938.11843173,0.000189,2]
[370036506,1751855359863,-873.90854956,0.000189,2]
[370036507,1751855359883,-813.78,0.00018983,3]
[370036508,1751855359904,-669.57,0.0001899,2]
[370036509,1751855359927,-17444.80896168,0.00018991,2]
[370036510,1751855359949,-460.0,0.00018992,2]
[370036511,1751855359971,-460.0,0.00018992,2]
[370036512,1751855359991,-665.27,0.00018992,2]
[370036513,1751855360016,-926.37,0.00018992,2]
[370036514,1751855360037,-460.0,0.00018992,2]
[370036515,1751855360057,-460.0,0.00018992,2]
[370036516,1751855360077,-287.48,0.00018992,2]
[370036517,1751855360098,-500.72999754,0.00018993,2]
[370036518,1751855360117,-460.0,0.00018993,2]
[370036519,1751855360138,-460.0,0.00018993,2]
[370036520,1751855360158,-460.0,0.00018993,2]
[370036521,1751855360177,-460.0,0.00018993,2]
[370036522,1751855360197,-157.79,0.00018993,2]
[370036523,1751855360217,-460.0,0.00018993,2]
[370036524,1751855360242,-460.0,0.00018993,2]
[370036525,1751855360264,-460.0,0.00018993,2]
[370036526,1751855360285,-500.0,0.00018993,2]
[370036527,1751855360307,-766.81,0.00018993,2]
[370036528,1751855360328,-250.48946723,0.00018993,2]
[370036529,1751855360347,-460.0,0.00018993,2]
[370036530,1751855360509,-465.18628858,0.00018993,2]
[370036531,1751855360530,-464.79557457,0.00018993,2]
[370036532,1751855360552,-460.0,0.00018993,2]
[370036533,1751855360572,-503.42353809,0.00018995,2]
[370036534,1751855360592,-377.65742248,0.00018995,2]
[370036535,1751855360612,-461.85196995,0.00018995,2]
[370036536,1751855360632,-462.93197304,0.00018995,2]
[370036537,1751855360653,-460.0,0.00018995,2]
[370036538,1751855360674,-460.0,0.00018995,2]
[370036539,1751855360695,-460.0,0.00018995,2]
[370036540,1751855360715,-460.0,0.00018995,2]
[370036541,1751855360735,-363.15656212,0.00018995,2]
[370036542,1751855360756,-1439.84,0.00018995,2]
[370036543,1751855360778,-460.0,0.00018995,2]
[370036544,1751855360797,-460.0,0.00018995,2]
[370036545,1751855360818,-460.0,0.00018995,2]
[370036546,1751855360839,-1751.11,0.00018997,2]
[370036547,1751855360859,-460.0,0.00018997,2]
[370036548,1751855360879,-460.0,0.00018997,2]
[370036549,1751855360899,-23419.04637963,0.00019,2]
[370036550,1751855360918,-185.6621204,0.0001901,2]
[370036551,1751855360940,-500.0,0.00019036,2]
[370036552,1751855360964,-873.90854933,0.00019141,2]
[370036553,1751855360985,-468.85,0.00019164,2]
[370036554,1751855361007,-327.93,0.00019164,2]
[370036555,1751855361028,-865.33259277,0.00019164,2]
[370036556,1751855361048,-463.10530365,0.00019165,2]
[370036557,1751855361067,-460.0,0.00019165,2]
[370036558,1751855361088,-461.85893605,0.00019165,2]
[370036559,1751855361110,-460.0,0.00019165,2]
[370036560,1751855361129,-508.8261607,0.00019165,2]
[370036561,1751855361149,-465.87617132,0.00019165,2]
[370036562,1751855361170,-366.24227869,0.00019165,2]
[370036563,1751855361191,-460.0,0.00019165,2]
[370036564,1751855361212,-460.0,0.00019165,2]
[370036565,1751855361231,-460.0,0.00019165,2]
[370036566,1751855361251,-460.0,0.00019165,2]
[370036567,1751855361272,-975.74,0.00019165,2]
[370036568,1751855361293,-460.0,0.00019165,2]
[370036569,1751855361312,-460.0,0.00019165,2]
[370036570,1751855361332,-463.76395587,0.00019165,2]
[370036571,1751855361352,-461.70807778,0.00019165,2]
[370036572,1751855361372,-622.57,0.00019165,2]
[370036573,1751855361391,-666.0,0.00019178,2]
[370036574,1751855361412,-669.57,0.00019264,2]
[370036575,1751855361435,-460.0,0.00019266,2]
[370036576,1751855361457,-460.0,0.00019266,2]
[370036577,1751855361483,-665.27,0.00019266,2]
[370036578,1751855361507,-926.37,0.00019266,2]
[370036579,1751855361528,-460.0,0.00019266,2]
[370036580,1751855361549,-460.0,0.00019266,2]
[370036581,1751855361569,-460.0,0.00019267,2]
[370036582,1751855361590,-460.0,0.00019267,2]
[370036583,1751855361609,-460.0,0.00019267,2]
[370036584,1751855361630,-460.0,0.00019267,2]
[370036585,1751855361650,-766.81,0.00019267,2]
[370036586,1751855361671,-460.0,0.00019267,2]
[370036587,1751855361689,-460.0,0.00019267,2]
[370036588,1751855361709,-460.0,0.00019269,2]
[370036589,1751855361730,-460.0,0.00019269,2]
[370036590,1751855361750,-1439.84,0.00019269,2]
[370036591,1751855361770,-460.0,0.00019269,2]
[370036592,1751855361792,-460.0,0.00019269,2]
[370036593,1751855361813,-460.0,0.00019269,2]
[370036594,1751855361833,-1751.11,0.00019271,2]
[370036595,1751855361854,-460.0,0.00019271,2]
[370036596,1751855361873,-464.25063322,0.00019329,2]
[370036597,1751855361893,-466.0159401,0.00019329,2]
[370036598,1751855361912,-505.73037839,0.00019329,2]
[370036599,1751855361936,-460.0,0.00019329,2]
[370036600,1751855361956,-462.18484371,0.00019329,2]
[370036601,1751855361977,-405.03589226,0.00019329,2]
[370036602,1751855361998,-460.82549393,0.00019329,2]
[370036603,1751855362021,-460.0,0.00019329,2]
[370036604,1751855362041,-471.56550586,0.00019329,2]
[370036605,1751855362061,-460.0,0.00019329,2]
[370036606,1751855362081,-460.0,0.00019329,2]
[370036607,1751855362101,-460.0,0.00019329,2]
[370036608,1751855362122,-460.0,0.00019329,2]
[370036609,1751855362142,-460.0,0.00019329,2]
[370036610,1751855362163,-460.0,0.00019329,2]
[370036611,1751855362184,-460.0,0.00019329,2]
[370036612,1751855362204,-460.0,0.00019329,2]
[370036613,1751855362223,-390.65,0.00019329,2]
[370036614,1751855362243,-460.0,0.00019329,2]
[370036615,1751855362265,-464.79158474,0.00019329,2]
[370036616,1751855362283,-163.58810041,0.00019329,2]
[370036617,1751855362305,-873.90854933,0.00019383,2]
[370036618,1751855362325,-463.95617707,0.00019439,2]
[370036619,1751855362344,-464.02393983,0.00019439,2]
[370036620,1751855362364,-460.0,0.00019439,2]
[370036621,1751855362383,-460.0,0.00019439,2]
[370036622,1751855362404,-410.20742602,0.00019439,2]
[370036623,1751855362424,-460.0,0.00019439,2]
[370036624,1751855362445,-975.74,0.00019439,2]
[370036625,1751855362465,-460.0,0.00019439,2]
[370036626,1751855362485,-460.0,0.00019439,2]
[370036627,1751855362506,-622.57,0.00019439,2]
[370036628,1751855362524,-34735.59564182,0.0001944,2]
[370036629,1751855362544,-627.59950112,0.0001944,2]
[370036630,1751855362564,-177057.41370451,0.00019536,2]
[370036631,1751855370669,420.00429551,0.00017999,2]
[370036634,1751855430054,631.15985821,0.00018324,2]
[370036635,1751855430075,203.81923679,0.00018324,2]
[370036640,1751855432267,-254.87,0.00018324,2]
[370036641,1751855432321,-1267.2257555,0.00018324,2]
[370036642,1751855432331,-752.26,0.0001899,2]
[370036643,1751855432341,-460.0,0.00018992,2]
[370036644,1751855432350,-460.0,0.00018992,2]
[370036645,1751855432362,-565.13158357,0.00018992,2]
[370036646,1751855432371,-460.0,0.00018993,2]
[370036649,1751855432381,-460.0,0.00018993,2]
[370036651,1751855432390,-460.0,0.00018993,2]
[370036653,1751855432399,-460.0,0.00018993,2]
[370036655,1751855432409,-471.17356046,0.00018993,2]
[370036657,1751855432419,-460.0,0.00018993,2]
[370036659,1751855432429,-460.0,0.00018993,2]
[370036660,1751855432439,-460.0,0.00018995,2]
[370036662,1751855432449,-739.73,0.00018995,2]
[370036663,1751855432460,-603.20507363,0.00019165,2]
[370036664,1751855432471,-1840.17,0.00019165,2]
[370036665,1751855432482,-752.26,0.00019264,2]
[370036666,1751855432493,-265.30515762,0.00019266,2]
[370036667,1751855432503,-300.0,0.00019266,2]
[370036668,1751855432512,-460.0,0.00019266,2]
[370036669,1751855432522,-435.92391534,0.00019267,2]
[370036670,1751855432535,-24.07608466,0.00019267,2]
[370036671,1751855432546,-460.0,0.00019267,2]
[370036672,1751855432555,-460.0,0.00019267,2]
[370036673,1751855432565,-460.0,0.00019267,2]
[370036674,1751855432575,-460.0,0.00019267,2]
[370036675,1751855432584,-460.0,0.00019267,2]
[370036676,1751855432594,-460.0,0.00019269,2]
[370036677,1751855432604,-739.73,0.00019269,2]
[370036678,1751855432614,-460.0,0.00019329,2]
[370036679,1751855432624,-276.6669873,0.00019438,2]
[370036680,1751855432633,-1840.17,0.00019439,2]
[370036681,1751855432643,-40244.21874406,0.00019536,2]
[370036699,1751855438236,-460.0,0.0001899,2]
[370036700,1751855438247,-541.94,0.00018992,2]
[370036701,1751855438256,-460.0,0.00018993,2]
[370036702,1751855438266,-468.51258335,0.00018993,2]
[370036703,1751855438275,-548.35259827,0.00018993,2]
[370036704,1751855438285,-121.96530146,0.00018993,2]
[370036705,1751855438297,-338.03469854,0.00018993,2]
[370036706,1751855438307,-167.04404598,0.00018994,2]
[370036707,1751855438317,-63.47168825,0.00018994,2]
[370036708,1751855438329,-328.11192217,0.00018994,2]
[370036709,1751855438338,-211.73429719,0.00018994,2]
[370036710,1751855438350,-288.26570281,0.00018994,2]
[370036711,1751855438360,-118.19416365,0.00018994,2]
[370036722,1751855441602,-305.92555546,0.00018994,2]
[370036723,1751855441732,-88.37638177,0.00018994,2]
[370036724,1751855441742,-500.0,0.00018994,2]
[370036725,1751855441752,-500.0,0.00018994,2]
[370036726,1751855441761,-307.19940564,0.00018994,2]
[370036727,1751855441773,-221.64181031,0.00018994,2]
[370036728,1751855441784,-460.0,0.00019264,2]
[370036729,1751855441794,-12.46621629,0.00019266,2]
[370036730,1751855441811,-529.47378371,0.00019266,2]
[370036731,1751855441821,-460.0,0.00019267,2]
[370036732,1751855441831,-332.65710527,0.00019267,2]
[370036733,1751855441840,-207.19004961,0.00019535,2]
[370036734,1751855441851,-8281.35561894,0.00019536,2]
[370036735,1751855441862,-669.57,0.00019538,2]
[370036736,1751855441871,-752.26,0.00019538,2]
[370036737,1751855441880,-460.0,0.00019538,2]
[370036738,1751855441890,-665.27,0.0001954,2]
[370036739,1751855441899,-926.37,0.0001954,2]
[370036740,1751855441909,-460.0,0.0001954,2]
[370036741,1751855441918,-460.0,0.0001954,2]
[370036742,1751855441927,-460.0,0.0001954,2]
[370036743,1751855441936,-541.94,0.0001954,2]
[370036744,1751855441946,-594.18635321,0.00019541,2]
[370036745,1751855441959,-766.81,0.00019541,2]
[370036746,1751855441969,-460.0,0.00019541,2]
[370036747,1751855441979,-460.0,0.00019541,2]
[370036748,1751855441989,-460.0,0.00019541,2]
[370036749,1751855441999,-460.0,0.00019541,2]
[370036750,1751855442009,-460.0,0.00019541,2]
[370036751,1751855442019,-460.0,0.00019541,2]
[370036752,1751855442029,-460.0,0.00019541,2]
[370036753,1751855442040,-460.0,0.00019541,2]
[370036754,1751855442049,-460.0,0.00019543,2]
[370036755,1751855442058,-460.0,0.00019543,2]
[370036756,1751855442068,-1439.84,0.00019543,2]
[370036757,1751855442079,-460.0,0.00019543,2]
[370036758,1751855442090,-236.4749129,0.00019543,2]
[370036759,1751855442099,-460.0,0.00019543,2]
[370036760,1751855442109,-460.0,0.00019543,2]
[370036761,1751855442120,-739.73,0.00019543,2]
[370036762,1751855442129,-460.0,0.00019545,2]
[370036763,1751855442139,-500.0,0.00019573,2]
[370036764,1751855442148,-500.0,0.00019573,2]
[370036765,1751855442158,-464.68413997,0.00019603,2]
[370036766,1751855442168,-473.96699947,0.00019603,2]
[370036767,1751855442178,-460.0,0.00019603,2]
[370036768,1751855442187,-481.82911957,0.00019603,2]
[370036769,1751855442196,-460.0,0.00019603,2]
[370036770,1751855442205,-460.0,0.00019603,2]
[370036771,1751855442214,-481.85637382,0.00019603,2]
[370036772,1751855442224,-873.90854933,0.00019624,2]
[370036773,1751855442233,-460.0,0.00019713,2]
[370036774,1751855442243,-460.0,0.00019713,2]
[370036775,1751855442252,-975.74,0.00019713,2]
[370036776,1751855442261,-506.20496522,0.00019713,2]
[370036777,1751855442270,-460.0,0.00019713,2]
[370036778,1751855442279,-622.57,0.00019713,2]
[370036779,1751855442288,-1840.17,0.00019713,2]
[370036780,1751855442298,-669.57,0.00019812,2]
[370036781,1751855442307,-752.26,0.00019812,2]
[370036782,1751855442317,-460.0,0.00019812,2]
[370036783,1751855442326,-665.27,0.00019814,2]
[370036784,1751855442335,-926.37,0.00019814,2]
[370036785,1751855442344,-460.0,0.00019814,2]
[370036786,1751855442354,-460.0,0.00019814,2]
[370036787,1751855442363,-460.0,0.00019814,2]
[370036788,1751855442372,-541.94,0.00019814,2]
[370036789,1751855442382,-766.81,0.00019815,2]
[370036790,1751855442393,-460.0,0.00019815,2]
[370036791,1751855442402,-460.0,0.00019815,2]
[370036792,1751855442412,-460.0,0.00019815,2]
[370036793,1751855442421,-151.71580233,0.00019815,2]
[370036794,1751855442431,-460.0,0.00019815,2]
[370036795,1751855442440,-460.0,0.00019815,2]
[370036796,1751855442449,-205.60810597,0.00019815,2]
[370036797,1751855442458,-460.0,0.00019815,2]
[370036798,1751855442467,-460.0,0.00019815,2]
[370036799,1751855442476,-478.17402919,0.00019815,2]
[370036800,1751855442485,-256.45622366,0.00019817,2]
[370036801,1751855442494,-460.0,0.00019817,2]
[370036802,1751855442503,-1439.84,0.00019817,2]
[370036803,1751855442513,-460.0,0.00019817,2]
[370036804,1751855442523,-460.0,0.00019817,2]
[370036805,1751855442532,-460.0,0.00019817,2]
[370036806,1751855442541,-739.73,0.00019817,2]
[370036807,1751855442550,-460.0,0.00019819,2]
[370036808,1751855442560,-873.90854933,0.00019866,2]
[370036809,1751855442570,-487.5,0.00019876,2]
[370036810,1751855442579,-460.0,0.00019876,2]
[370036811,1751855442588,-837.69501035,0.00019983,2]
[370036812,1751855442597,-460.0,0.00019987,2]
[370036813,1751855442607,-490.10753573,0.00019987,2]
[370036814,1751855442616,-975.74,0.00019987,2]
[370036815,1751855442626,-460.0,0.00019987,2]
[370036816,1751855442635,-622.57,0.00019987,2]
[370036817,1751855442647,-1840.17,0.00019987,2]
[370036818,1751855442657,-153.93522719,0.0002,20]
[370036819,1751855442668,-500.0,0.00020038,2]
[370036820,1751855442678,-160.0,0.00020043,2]
[370036821,1751855442688,-160.0,0.00020043,2]
[370036822,1751855442698,-160.0,0.00020043,2]
[370036823,1751855442709,-160.0,0.00020043,2]
[370036824,1751855442718,-230.48668418,0.00020043,2]
[370036825,1751855442728,-215.21338352,0.00020043,2]
[370036826,1751855442738,-160.0,0.00020043,2]
[370036827,1751855442749,-12584.46609586,0.00020043,2]
[370036828,1751855442759,-160.0,0.00020043,2]
[370036829,1751855442769,-848.27993403,0.00020043,2]
[370036830,1751855442778,-160.0,0.00020043,2]
[370036831,1751855442787,-214.06929976,0.00020044,2]
[370036832,1751855442796,-669.57,0.00020086,2]
[370036833,1751855442925,-752.26,0.00020086,2]
[370036834,1751855442934,-460.0,0.00020086,2]
[370036835,1751855442944,-665.27,0.00020088,2]
[370036836,1751855442956,-926.37,0.00020088,2]
[370036837,1751855442965,-460.0,0.00020088,2]
[370036838,1751855442975,-460.0,0.00020088,2]
[370036839,1751855442984,-460.0,0.00020088,2]
[370036841,1751855442993,-766.81,0.00020089,2]
[370036842,1751855443002,-460.0,0.00020089,2]
[370036843,1751855443012,-460.0,0.00020089,2]
[370036844,1751855443022,-460.0,0.00020089,2]
[370036845,1751855443032,-460.0,0.00020089,2]
[370036846,1751855443041,-460.0,0.00020089,2]
[370036847,1751855443050,-460.0,0.00020089,2]
[370036848,1751855443059,-472.04027745,0.00020089,2]
[370036849,1751855443068,-460.0,0.00020091,2]
[370036850,1751855443079,-1439.84,0.00020091,2]
[370036851,1751855443088,-460.0,0.00020091,2]
[370036852,1751855443097,-460.0,0.00020091,2]
[370036853,1751855443107,-460.0,0.00020091,2]
[370036854,1751855443116,-739.73,0.00020091,2]
[370036855,1751855443126,-460.0,0.00020093,2]
[370036856,1751855443135,-873.90854933,0.00020107,2]
[370036857,1751855443144,-622.79991563,0.00020121,2]
[370036858,1751855443154,-460.0,0.0002015,2]
[370036859,1751855443163,-182.318307,0.00020187,2]
[370036860,1751855443172,-460.0,0.00020261,2]
[370036861,1751855443182,-975.74,0.00020261,2]
[370036862,1751855443191,-460.0,0.00020261,2]
[370036863,1751855443201,-622.57,0.00020261,2]
[370036864,1751855443211,-1840.17,0.00020261,2]
[370036865,1751855443222,-276.66698727,0.00020268,2]
[370036866,1751855443232,-873.90854933,0.00020348,3]
[370036867,1751855443241,-669.57,0.0002036,2]
[370036868,1751855443250,-752.26,0.0002036,2]
[370036869,1751855443259,-460.0,0.0002036,2]
[370036870,1751855443269,-665.27,0.00020362,2]
[370036871,1751855443278,-926.37,0.00020362,2]
[370036872,1751855443288,-460.0,0.00020362,2]
[370036873,1751855443297,-460.0,0.00020362,2]
[370036874,1751855443306,-460.0,0.00020362,2]
[370036875,1751855443316,-766.81,0.00020363,2]
[370036876,1751855443325,-460.0,0.00020363,2]
[370036877,1751855443335,-460.0,0.00020363,2]
[370036878,1751855443345,-460.0,0.00020363,2]
[370036879,1751855443354,-460.0,0.00020363,2]
[370036880,1751855443364,-498.97987205,0.00020363,2]
[370036881,1751855443373,-392.29161597,0.00020363,2]
[370036882,1751855443383,-460.0,0.00020365,2]
[370036883,1751855443392,-1439.84,0.00020365,2]
[370036884,1751855443402,-460.0,0.00020365,2]
[370036885,1751855443411,-460.0,0.00020365,2]
[370036886,1751855443421,-460.0,0.00020365,2]
[370036887,1751855443431,-739.73,0.00020365,2]
[370036888,1751855443441,-460.0,0.00020367,2]
[370036889,1751855443450,-460.0,0.00020424,2]
[370036890,1751855443460,-501.06783131,0.00020429,2]
[370036891,1751855443469,-500.0,0.00020429,2]
[370036892,1751855443478,-500.0,0.00020429,2]
[370036893,1751855443487,-503.48973608,0.00020429,2]
[370036894,1751855443497,-500.0,0.00020429,2]
[370036896,1751855443506,-300.12200143,0.00020429,2]
[370036897,1751855443515,-501.15289154,0.00020429,2]
[370036898,1751855443525,-500.0,0.00020429,2]
[370036899,1751855443535,-460.0,0.00020535,2]
[370036901,1751855443544,-975.74,0.00020535,2]
[370036903,1751855443554,-460.0,0.00020535,2]
[370036905,1751855443564,-622.57,0.00020535,2]
[370036906,1751855443573,-1840.17,0.00020535,2]
[370036907,1751855443583,-873.90854933,0.0002059,3]
[370036908,1751855443593,-730.2,0.000206,2]
[370036909,1751855443602,-669.57,0.00020634,2]
[370036910,1751855443612,-752.26,0.00020634,2]
[370036911,1751855443622,-460.0,0.00020634,2]
[370036912,1751855443631,-665.27,0.00020636,2]
[370036913,1751855443640,-926.37,0.00020636,2]
[370036914,1751855443650,-460.0,0.00020636,2]
[370036915,1751855443659,-460.0,0.00020636,2]
[370036916,1751855443668,-460.0,0.00020636,2]
[370036917,1751855443677,-766.81,0.00020637,2]
[370036918,1751855443686,-460.0,0.00020637,2]
[370036919,1751855443696,-460.0,0.00020637,2]
[370036920,1751855443706,-460.0,0.00020637,2]
[370036921,1751855443717,-460.0,0.00020637,2]
[370036922,1751855443727,-460.0,0.00020639,2]
[370036923,1751855443739,-1439.84,0.00020639,2]
[370036924,1751855443748,-460.0,0.00020639,2]
[370036925,1751855443758,-460.0,0.00020639,2]
[370036926,1751855443768,-460.0,0.00020639,2]
[370036927,1751855443779,-739.73,0.00020639,2]
[370036928,1751855443789,-460.0,0.00020641,2]
[370036929,1751855443800,-150.0,0.00020641,2]
[370036930,1751855443810,-500.0,0.00020696,2]
[370036931,1751855443821,-460.0,0.00020698,2]
[370036932,1751855443832,-627.59950112,0.00020705,2]
[370036933,1751855443842,-414.564,0.00020784,2]
[370036934,1751855443852,-500.0,0.00020791,2]
[370036935,1751855443862,-460.0,0.00020809,2]
[370036936,1751855443872,-975.74,0.00020809,2]
[370036937,1751855443881,-460.0,0.00020809,2]
[370036938,1751855443891,-622.57,0.00020809,2]
[370036939,1751855443901,-1840.17,0.00020809,2]
[370036940,1751855443910,-873.90854933,0.00020831,4]
[370036941,1751855443919,-500.0,0.00020885,2]
[370036942,1751855443929,-669.57,0.00020908,2]
[370036943,1751855443939,-752.26,0.00020908,2]
[370036944,1751855443948,-460.0,0.00020908,2]
[370036945,1751855443963,-665.27,0.0002091,2]
[370036946,1751855443973,-926.37,0.0002091,2]
[370036947,1751855443982,-460.0,0.0002091,2]
[370036948,1751855443991,-460.0,0.0002091,2]
[370036949,1751855444001,-460.0,0.0002091,2]
[370036950,1751855444011,-766.81,0.00020911,2]
[370036951,1751855444021,-424.92332081,0.00020911,2]
[370036952,1751855444031,-460.0,0.00020911,2]
[370036953,1751855444041,-460.0,0.00020911,2]
[370036954,1751855444051,-460.0,0.00020911,2]
[370036955,1751855444060,-460.0,0.00020913,2]
[370036956,1751855444069,-1439.84,0.00020913,2]
[370036957,1751855444079,-460.0,0.00020913,2]
[370036958,1751855444089,-460.0,0.00020913,2]
[370036959,1751855444098,-460.0,0.00020913,2]
[370036960,1751855444108,-739.73,0.00020913,2]
[370036961,1751855444117,-460.0,0.00020915,2]
[370036962,1751855444127,-460.0,0.00020972,2]
[370036963,1751855444137,-786.97115033,0.00020977,2]
[370036964,1751855444146,-500.0,0.00020977,2]
[370036965,1751855444155,-504.04703047,0.00020977,2]
[370036966,1751855444165,-500.0,0.0002098,2]
[370036967,1751855444174,-420.0,0.00020994,2]
[370036968,1751855444184,-19267.89452712,0.00021,2]
[370036969,1751855444193,-873.90854933,0.00021072,4]
[370036970,1751855444202,-500.0,0.00021075,2]
[370036971,1751855444212,-460.0,0.00021083,2]
[370036972,1751855444221,-975.74,0.00021083,2]
[370036973,1751855444230,-460.0,0.00021083,2]
[370036974,1751855444239,-622.57,0.00021083,2]
[370036975,1751855444248,-1840.17,0.00021083,2]
[370036976,1751855444257,-500.0,0.00021093,2]
[370036977,1751855444266,-500.0,0.0002117,2]
[370036978,1751855444275,-669.57,0.00021182,2]
[370036979,1751855444284,-752.26,0.00021182,2]
[370036980,1751855444293,-460.0,0.00021182,2]
[370036981,1751855444303,-665.27,0.00021184,2]
[370036982,1751855444312,-926.37,0.00021184,2]
[370036983,1751855444321,-460.0,0.00021184,2]
[370036984,1751855444330,-460.0,0.00021184,2]
[370036985,1751855444339,-460.0,0.00021184,2]
[370036986,1751855444348,-766.81,0.00021185,2]
[370036987,1751855444357,-460.0,0.00021185,2]
[370036988,1751855444367,-460.0,0.00021185,2]
[370036989,1751855444376,-268.92638648,0.00021185,2]
[370036990,1751855444385,-238.25491378,0.00021187,2]
[370036991,1751855444394,-1439.84,0.00021187,2]
[370036992,1751855444404,-460.0,0.00021187,2]
[370036993,1751855444414,-460.0,0.00021187,2]
[370036994,1751855444423,-460.0,0.00021187,2]
[370036995,1751855444432,-739.73,0.00021187,2]
[370036996,1751855444441,-460.0,0.00021189,2]
[370036997,1751855444451,-482.05087573,0.00021246,2]
[370036998,1751855444460,-500.0,0.00021264,2]
[370036999,1751855444470,-873.90854933,0.00021314,5]
[370037000,1751855444479,-460.0,0.00021357,2]
[370037001,1751855444489,-975.74,0.00021357,2]
[370037002,1751855444498,-557.16746967,0.00021357,2]
[370037003,1751855444507,-622.57,0.00021357,2]
[370037004,1751855444516,-1840.17,0.00021357,2]
[370037005,1751855444526,-500.0,0.00021359,2]
[370037006,1751855444536,-500.0,0.00021454,2]
[370037007,1751855444546,-2052.22,0.00021455,2]
[370037008,1751855444556,-669.57,0.00021456,2]
[370037009,1751855444566,-752.26,0.00021456,2]
[370037010,1751855444575,-460.0,0.00021456,2]
[370037011,1751855444584,-665.27,0.00021458,2]
[370037012,1751855444594,-926.37,0.00021458,2]
[370037013,1751855444604,-460.0,0.00021458,2]
[370037014,1751855444613,-460.0,0.00021458,2]
[370037015,1751855444623,-460.0,0.00021458,2]
[370037016,1751855444633,-766.81,0.00021459,2]
[370037017,1751855444642,-460.0,0.00021459,2]
[370037018,1751855444651,-460.0,0.00021459,2]
[370037019,1751855444661,-1439.84,0.00021461,2]
[370037020,1751855444670,-460.0,0.00021461,2]
[370037021,1751855444679,-460.0,0.00021461,2]
[370037022,1751855444689,-460.0,0.00021461,2]
[370037023,1751855444698,-739.73,0.00021461,2]
[370037024,1751855444707,-460.0,0.00021463,2]
[370037025,1751855444717,-500.0,0.00021548,2]
[370037026,1751855444726,-873.90854933,0.00021555,5]
[370037027,1751855444735,-179.74835231,0.00021568,2]
[370037028,1751855444744,-460.0,0.00021631,2]
[370037029,1751855444754,-975.74,0.00021631,2]
[370037030,1751855444763,-622.57,0.00021631,2]
[370037031,1751855444772,-1840.17,0.00021631,2]
[370037032,1751855444782,-500.0,0.00021643,2]
[370037033,1751855444791,-730.2,0.000217,2]
[370037034,1751855444801,-669.57,0.0002173,2]
[370037035,1751855444810,-752.26,0.0002173,2]
[370037036,1751855444820,-665.27,0.00021732,2]
[370037037,1751855444829,-926.37,0.00021732,2]
[370037038,1751855444839,-460.0,0.00021732,2]
[370037039,1751855444848,-460.0,0.00021732,2]
[370037040,1751855444857,-460.0,0.00021732,2]
[370037041,1751855444867,-766.81,0.00021733,2]
[370037042,1751855444876,-460.0,0.00021733,2]
[370037043,1751855444891,-460.0,0.00021733,2]
[370037044,1751855444901,-1439.84,0.00021735,2]
[370037045,1751855444911,-460.0,0.00021735,2]
[370037046,1751855444920,-460.0,0.00021735,2]
[370037047,1751855444930,-460.0,0.00021735,2]
[370037048,1751855444939,-739.73,0.00021735,2]